Cogmind - Beta 16 @@@ ROGUE MODE // 2025.12.31 @ 13:40:35 Player: tanukistars115 Result: Destroyed by D-53 Grenadier with Mini Grenade Launcher Performance ------------- Evolutions (0) 0 Regions Visited (2) 400 Robots Destroyed (18) 90 Value Destroyed (394) 394 Prototype IDs (2) 40 Alien Tech Used (0) 0 Bonus (0) 0 TOTAL SCORE: 924 Bonus ------- None Cogmind --------- Core Integrity 0/250 Matter 93/300 Energy 100/100 System Corruption 0% Temperature Cool (0) Movement Core (350) Ox6 Location -10/Mines Parts ------- > --- POWER (1) -------- (None) > --- PROPULSION (2) --- (None) > --- UTILITY (2) ------ Large Storage Unit Structural Scanner > --- WEAPON (2) ------- (None) > --- INVENTORY (15) --- Scrap Suit Stasis Trap (100%) Stasis Trap (100%) Peak State ------------ > --- POWER ------------ Ion Engine > --- PROPULSION ------- Light Treads Light Treads > --- UTILITY ---------- Large Storage Unit Structural Scanner > --- WEAPON ----------- Light Assault Rifle Grenade Launcher > --- INVENTORY -------- Scrap Suit Stasis Trap Stasis Trap Stasis Trap [Rating: 8] Favorites ----------- Power Ion Engine Engine Ion Engine Propulsion Light Treads Treads Light Treads Utility Structural Scanner Device Structural Scanner Storage Small Storage Unit Weapon Grenade Launcher Energy Gun EM Pulse Gun Ballistic Gun Light Assault Rifle Launcher Grenade Launcher Build | -11 -10 -10 ------- Run | Yrd Mat Min Slots Evolved . | . . . Power . | . . . Propulsion . | . . . Utility . | . . . Weapon . | . . . Parts Attached 10 | 6 3 1 Power 1 | 1 . . Engine 1 | 1 . . Core . | . . . Reactor . | . . . Propulsion 2 | 2 . . Treads 2 | 2 . . Leg . | . . . Wheel . | . . . Hover . | . . . Flight . | . . . Utility 4 | 1 2 1 Device 1 | . 1 . Storage 3 | 1 1 1 Processor . | . . . Hackware . | . . . Protection . | . . . Artifact . | . . . Weapon 3 | 2 1 . Energy Gun 1 | 1 . . Energy Cannon . | . . . Ballistic Gun 1 | 1 . . Ballistic Cannon . | . . . Launcher 1 | . 1 . Special Weapon . | . . . Impact Weapon . | . . . Slashing Weapon . | . . . Piercing Weapon . | . . . Special Melee Weapon . | . . . Unidentified Prototypes . | . . . Parts Lost 6 | . 1 5 Power 1 | . . 1 Propulsion 2 | . . 2 Utility . | . . . Weapon 3 | . 1 2 Highest Loss Streak 5 | . 1 5 To Critical Strikes . | . . . Average Backups . | . . . Power . | . . . Propulsion . | . . . Utility . | . . . Weapon . | . . . Tool/Special . | . . . Unused Backups . | . . . Power . | . . . Propulsion . | . . . Utility . | . . . Weapon . | . . . Tool/Special . | . . . Average Slot Usage (%) 94 | . 94 94 Engine 13 | . 14 13 Treads 27 | . 28 26 Device 10 | . 9 14 Storage 14 | . 14 14 Energy Gun 7 | . 10 . Ballistic Gun 8 | . 6 13 Launcher 11 | . 11 12 Peak Build Rating 8 | 6 7 8 Average Rating 6 | 4 6 6 On Entrance 4 | . 6 7 Avg Prop Armor Cover (%) . | . . . Naked Turns . | . . . Heaviest Build 30 | 13 20 30 Greatest Support 40 | 40 40 40 Greatest Overweight (x) 8 | . . 8 Average Overweight (x) . | . . . Largest Inventory Capacity 15 | 8 10 15 Average Capacity 9 | 7 8 14 Most Carried 5 | 4 2 5 Average Carried 1 | . . 2 Final Capacity 15 | 8 10 15 Final Carried 4 | . . 4 Class Distribution -------------------- 100% | Mutant Dominant Class ---------------- Mutant | -10/Materials Mutant | -10/Mines Resources | -11 -10 -10 ----------- Run | Yrd Mat Min Matter Collected 351 | 225 50 76 Remotely . | . . . Salvage Created 424 | . 379 45 Parts 29 | . 25 4 Haulers Intercepted . | . . . Recyclers Shooed 2 | . 1 1 Parts Field Recycled . | . . . Retrieved Matter . | . . . Parts Self-Destructed . | . . . Prevented . | . . . Parts Restored . | . . . Kills | -11 -10 -10 ------- Run | Yrd Mat Min Combat Hostiles Destroyed 31 | . 11 20 Guns 3 | . 3 . AOE 28 | . 8 20 Classes Destroyed 6 | . 5 1 Builder 2 | . 2 . Recycler 1 | . 1 . Mechanic 1 | . 1 . Swarmer 6 | . 3 3 Grunt 8 | . 8 . Assembled 17 | . . 17 Best Kill Streak 17 | . 11 17 Combat Bots Only 17 | . 8 17 Max Kills in Single Turn 5 | . 3 5 Gunslinging . | . . . Exploded 5 | . 2 5 Melee . | . . . Uniques/NPCs Destroyed . | . . . Combat | -11 -10 -10 -------- Run | Yrd Mat Min Hostile Shots Fired 63 | . 34 29 Missed 17 | . 9 8 Hits 46 | . 25 21 Projectile 46 | . 25 21 AOE 14 | . . 14 Damage Taken 905 | . 258 647 Core 259 | . 41 218 Absorbed by Shields . | . . . Core Remaining (%) 100 | 100 . . Volleys Fired 31 | . 20 11 Largest 2 | . 2 2 Hottest 70 | . 70 50 Shots Fired 60 | . 38 22 Gun 34 | . 23 11 Cannon . | . . . Launcher 26 | . 15 11 Special . | . . . Kinetic 18 | . 7 11 Thermal . | . . . Explosive 26 | . 15 11 Electromagnetic 16 | . 16 . Robot Hit Streak 5 | . 5 2 Robot Miss Streak 4 | . 4 2 Penetration Max . | . . . Secondary Targets . | . . . Shots Hit Robots 24 | . 17 7 Core Hits 71 | . 27 44 Critical Kills . | . . . Critical Parts Destroyed . | . . . Critical Strikes . | . . . Melee Attacks . | . . . Impact . | . . . Slashing . | . . . Piercing . | . . . Sneak Attacks . | . . . Combat Hostiles . | . . . Follow-up Attacks . | . . . Damage Inflicted 2170 | . 914 1256 Guns 161 | . 127 34 Cannons . | . . . Explosions 2009 | . 787 1222 Melee . | . . . Ramming . | . . . Kinetic 56 | . 22 34 Thermal . | . . . Explosive 2009 | . 787 1222 Electromagnetic 105 | . 105 . Impact . | . . . Slashing . | . . . Piercing . | . . . Highest Corruption . | . . . Average Corruption . | . . . Corruption Purged . | . . . Corruption Blocked . | . . . Overload Shots . | . . . Overflow Damage 63 | . 40 23 Projectiles . | . . . Explosions 63 | . 40 23 Melee . | . . . Knockbacks . | . . . Impact . | . . . Kinetic . | . . . Secondary . | . . . Self-Inflicted Damage 11 | . . 11 Shots 1 | . . 1 Rammed . | . . . Targets Rammed . | . . . Kicked . | . . . Crushed . | . . . Highest Temperature 45 | . 45 20 Average Temperature 13 | . 14 8 Received Heat Transfer 111 | . 111 . Siege Activations . | . . . Martial Activations . | . . . Shielding Activations . | . . . Robots Disrupted . | . . . Combat Hostiles . | . . . Robots Corrupted . | . . . Combat Hostiles . | . . . Parts Fried . | . . . Impact Corruptions . | . . . Robots Melted . | . . . Combat Hostiles . | . . . Parts Melted . | . . . Heat Transferred . | . . . Parts Sabotaged . | . . . Parts Stolen . | . . . Parts Stripped . | . . . Power Chain Reactions . | . . . Alert | -11 -10 -10 ------- Run | Yrd Mat Min Maximum Alert Level 1 | . 1 . Low Security (%) 66 | 100 45 100 Level 1 33 | . 54 . Level 2 . | . . . Level 3 . | . . . Level 4 . | . . . Level 5 . | . . . High Security . | . . . Max Security . | . . . Peak Influence 257 | . 257 193 Initial 84 | . . 84 Average 147 | . 171 163 Influence Increases 524 | . 382 142 Destroy 0b10 Robot/C 280 | . 220 60 Destroy 0b10 Robot/NC 20 | . 20 . Destroy Leader 60 | . 50 10 Successful Hack 17 | . 17 . Disable Machine 30 | . . 30 Destroy Structure 102 | . 60 42 Lose Combat Pursuer 15 | . 15 . Influence Decreases 418 | . 165 253 Entered New Map 133 | . . 133 Time Decay 225 | . 155 70 Lost Part 60 | . 10 50 Squads Dispatched 4 | . 4 . Investigation 2 | . 2 . Extermination . | . . . Reinforcement 2 | . 2 . Assault . | . . . Garrison . | . . . Intercept . | . . . Searches Triggered . | . . . Construction Impeded . | . . . Haulers Reinforced . | . . . Active Scanning Responses . | . . . Cargo Convoy Interrupts . | . . . Stealth | -11 -10 -10 --------- Run | Yrd Mat Min Distress Signals . | . . . Communications Jammed . | . . . Distress Signals . | . . . Times Spotted 34 | . 17 17 Peak Tracking Total 18 | . 5 18 Tactical Retreats 1 | . 1 . Traps | -11 -10 -10 ------- Run | Yrd Mat Min Traps Triggered 1 | . 1 . Indirectly . | . . . Trap Hack Attempts . | . . . Triggered . | . . . Disarmed . | . . . Reprogrammed . | . . . Reused . | . . . Traps Extracted . | . . . Installed 1 | . . 1 Triggered . | . . . Most Traps Carried 3 | . . 3 Machines | -11 -10 -10 ---------- Run | Yrd Mat Min Machines Disabled 2 | . . 2 Max in Single Turn 2 | . . 2 Machines Repaired . | . . . Machines Dismantled . | . . . Machines Sabotaged . | . . . Overloaded Fab Kills . | . . . Hacking | -11 -10 -10 --------- Run | Yrd Mat Min Machines Accessed 3 | . 3 . Terminals 2 | . 2 . Fabricators . | . . . Repair Stations 1 | . 1 . Recycling Units . | . . . Scanalyzers . | . . . Garrison Access . | . . . Total Hacks 5 | . 5 . Successful 3 | . 3 . Failed 2 | . 2 . Catastrophic . | . . . Database Lockouts . | . . . Manual . | . . . Terminals 2 | . 2 . Fabricators . | . . . Repair Stations 3 | . 3 . Recycling Units . | . . . Scanalyzers . | . . . Garrison Access . | . . . Terminal Hacks 2 | . 2 . Record 1 | . 1 . Prototype ID Bank 1 | . 1 . Fabricator Hacks . | . . . Repair Station Hacks 1 | . 1 . Scan Component 1 | . 1 . Recycling Unit Hacks . | . . . Scanalyzer . | . . . Garrison Access Hacks . | . . . Unauthorized Hacks . | . . . Terminals . | . . . Fabricators . | . . . Repair Stations . | . . . Recycling Units . | . . . Scanalyzers . | . . . Garrison Access . | . . . Data Cores Recovered . | . . . Used . | . . . Hacking Detections 1 | . 1 . Full Trace Events 1 | . 1 . Feedback Events . | . . . Feedback Blocked . | . . . Robot Schematics Acquired . | . . . Robots Built . | . . . Authchips . | . . . Time . | . . . Total Robot Build Rating . | . . . Part Schematics Acquired . | . . . Parts Built . | . . . Authchips . | . . . Time . | . . . Total Part Build Rating . | . . . Part Studies Acquired . | . . . Parts Repaired . | . . . Time . | . . . Parts Recycled . | . . . Recycled Matter . | . . . Retrieved Matter . | . . . Retrieved Components . | . . . Parts Scanalyzed . | . . . Part Schematics Acquired . | . . . Parts Damaged . | . . . Bothacking | -11 -10 -10 ------------ Run | Yrd Mat Min Used RIF Installer . | . . . Robots Hacked . | . . . Non-combat . | . . . Combat . | . . . Robot Hacks Applied . | . . . Relay Couplers Released . | . . . Fabnet Peak Effective % . | . . . Robots Rewired . | . . . Allies Hacked . | . . . Hacks Repelled . | . . . Allies | -11 -10 -10 -------- Run | Yrd Mat Min Total Allies . | . . . Largest Group . | . . . Highest-Rated Group . | . . . Highest-Rated Ally . | . . . Total Orders . | . . . Ally Attacks . | . . . Total Damage . | . . . Kills . | . . . Allies Corrupted . | . . . Allies Melted . | . . . Intel | -11 -10 -10 ------- Run | Yrd Mat Min Active Infowar (turns) 411 | . 253 158 Structural 411 | . 253 158 Robot Analysis Total . | . . . Derelict Logs Recovered 1 | . . 1 Drone Launches . | . . . Drone Recoveries . | . . . Exploration | -11 -10 -10 ------------- Run | Yrd Mat Min Turns Passed 612 | 78 376 158 Spaces Moved 301 | 44 190 67 Core 5 | 3 . 2 Treads 296 | 41 190 65 Legs . | . . . Wheels . | . . . Hover . | . . . Flight . | . . . Fastest Speed 50 | 50 160 160 Average Speed 160 | 152 160 168 Slowest Speed 450 | 160 160 450 Overloaded Moves . | . . . Propulsion Burnouts . | . . . Robots Hopped . | . . . Potential Cave-ins . | . . . Cave-ins Triggered . | . . . Exploration Rate (%) 18 | 4 33 18 Regions Visited 2 Branch Regions 1 Pre-discovered Areas 1 | . . 1 Known Exits Taken . | . . . Unknown Exits Taken 2 | 1 1 . Scrap Searched 1 | . . 1 Spaces Dug . | . . . Terrain Destroyed 134 | . 68 66 Melee . | . . . Projectile . | . . . AOE 134 | . 68 66 Terrain Rammed . | . . . Walls Destroyed . | . . . Machines Disabled . | . . . Actions | -11 -10 -10 --------- Run | Yrd Mat Min Total 375 | 55 225 95 Wait 16 | . 8 8 Move 299 | 43 189 67 Hop . | . . . Pick Up 14 | 6 3 5 Fast Attach . | . . . Attach 8 | 6 2 . Detach . | . . . Swap 3 | . 2 1 Drop 3 | . 1 2 Fire 31 | . 20 11 Melee . | . . . Ram . | . . . Kick . | . . . Crush . | . . . Escape Stasis . | . . . Rewire . | . . . Trap 1 | . . 1 Miscellaneous . | . . . Route ------- -11/Scrapyard -10/Materials (discovered 2 exits: [*Min] / [*Sub]) -10/Mines History --------- Turn | Location | Event 9 | -11/Scrapyard | Discovered new exit (range 15) 79 | -11/Scrapyard | Entered Materials 205 | -10/Materials | Destroyed 8 combat bots 318 | -10/Materials | Build established: Mutant 347 | -10/Materials | Discovered new exit (range 13) 405 | -10/Materials | Discovered new exit (range 13) 455 | -10/Materials | Entered Mines 491 | -10/Mines | Found a hidden stash of uninstalled traps 521 | -10/Mines | Learned location of Zion (-7) 540 | -10/Mines | Assembled infested the area 556 | -10/Mines | Found a Scrap Suit stashed away for nefarious purposes 579 | -10/Mines | Found Scrap Suit 597 | -10/Mines | Destroyed 17 combat bots 610 | -10/Mines | Core integrity fell below 50% 613 | -10/Mines | Core integrity fell below 20% 613 | -10/Mines | Destroyed by D-53 Grenadier with Mini Grenade Launcher Last Messages --------------- as-73668 destroyed. as-05531 destroyed. as-67147 destroyed. [Achievement: Exterminator] as-41521 destroyed. as-16134 destroyed. Acquired Scrap Suit. The unstable cave ceiling collapses. R-06 Scavenger collects Sml. Storage Unit. The unstable cave ceiling collapses. Grenade Launcher destroyed. The unstable cave ceiling collapses. Lgt. Treads destroyed. The unstable cave ceiling collapses. Dropped Stasis Trap. Installed Stasis Trap. Lgt. Treads destroyed. Lgt. Assault Rifle destroyed. Ion Engine destroyed. The unstable cave ceiling collapses. Map ----- +----------------------------------------------------+ | ???????????????????????????????? | | ???????????????????????????????? | | ???????????????????????????????? | | ???????????????????????????????? | | ???????????????????????????????? | | ???######??????????????????????? | | ??############?????????????????? | | ??### # ######??? ???????????? | | ?### ## ???????????? | | ?### # < #### # ??????????? | | ?## ### ???????????? | | ?## ????????????? | | ??## t ?????????????? | | ??## ???????????????? | | ??## # ????????????????? | | ??### # ##????????????????? | | ??## ##????????????????? | | ??## d# ##????????????????? | | ??## d ##????????????????? | | ??## ###????????????????? | | ??## ##????????????????? | | ??## ##????????????????? | | ??## ##????????????????? | | ??## ###????????????????? | | ??## ##????????????????? | | ??## @ ##????????????????? | | ??## ###????????????????? | | ??### ###????????????????? | | ??## # ###?????????????????? | | ??## #########?????????????????? | | ??## ########??????????????????? | | ??## ##??????????????####??????? | | ??## ##?????#################??? | | ??## ##?????########## ######??? | | ??## ##?????## ##??? | | ??## ##?????## """ " " ##??? | | ??## ##?????## """ * ##??? | | ??## ##?????## """ " ##??? | | ??## ##?????## [ # ??? | | ?### ######### ## ??? | | #### ######### [ # ???? | | ### ### #### """ ## ???? | | ## ### ### ???? | | ## ######## ######????? | | ## ###### #####?????? | | ### ##### ##????????? | | ### #### ##????????? | | ?## ! ##????????? | | ?## ##????????? | | ?## ###########????????? | +----------------------------------------------------+ Best States ------------- Heat Dissipation 25 Energy Generation 10 Energy Capacity 250 Matter Stores 265 Matter Capacity 300 Sight Range 16 Terrain Scan Density 10 Evasion (%) 40 Recoil Reduction 2 Item Schematics ----------------- None Robot Schematics ------------------ None Fabricated ------------ Nothing Repaired ---------- Nothing Studied --------- None Alien Tech Used ----------------- None Achievements -------------- Exterminator Quick And Dirty Challenges ------------ None Game ------ Seed DeepNavigationDesublimator Manual? 0 Play Time 00:09:15 Cumulative 5.3 hours Start 2025.12.31 @ 13:33:44 End 2025.12.31 @ 13:40:35 Sessions 1 Manual Loads 0 Difficulty Rogue Special Mode None Game No. 16 Rogue 16 Adventurer 0 Explorer 0 Win Type - Total 0 Types 0/0/0/0/0/0/0/0/0/0 Lore% 6 Gallery% 11 Achievement% 12 Wizard Run 0 Options --------- Layout 1 ASCII 1 Keyboard 0 Movement Mouse Keybinds 0 Fullscreen 2 Font 32/SmallcapsGlow Map View 50x35 Zoom Use 0% Tactical HUD 0 Map Filters NONE Filters NONE Steam 1 RUN: a2b1e048-ae0e-4c7e-ba7b-960c68628169